[Event "Late-Titled-Tuesday-Blitz-April-23-2024"]
[Site "Chess.com"]
[Date "2024.04.23"]
[Round "10"]
[White "super_emi_26"]
[Black "Balla_Tamas"]
[Result "1-0"]
[WhiteElo "2711"]
[BlackElo "2555"]
[TimeControl "180+1"]
[EndTime "15:57:18 PDT"]
[Termination "super_emi_26 won by resignation"]

1. b3 {[%clk 0:03:00.9]} 1... c5 {[%clk 0:03:00]} 2. Bb2 {[%clk 0:02:56.1]} 2...
d5 {[%clk 0:03:00]} 3. e3 {[%clk 0:02:51]} 3... Nf6 {[%clk 0:02:59.6]} 4. f4
{[%clk 0:02:50]} 4... a6 {[%clk 0:02:57.6]} 5. Nf3 {[%clk 0:02:50.3]} 5... Nc6
{[%clk 0:02:57.8]} 6. Be2 {[%clk 0:02:50.6]} 6... g6 {[%clk 0:02:54.3]} 7. Ne5
{[%clk 0:02:49.8]} 7... Qc7 {[%clk 0:02:52.2]} 8. d3 {[%clk 0:02:48.8]} 8... Bg7
{[%clk 0:02:52.2]} 9. Nd2 {[%clk 0:02:49]} 9... Nxe5 {[%clk 0:02:47.8]} 10. Bxe5
{[%clk 0:02:46.6]} 10... Qc6 {[%clk 0:02:47.5]} 11. O-O {[%clk 0:02:46]} 11...
O-O {[%clk 0:02:44.8]} 12. Bf3 {[%clk 0:02:44.6]} 12... b5 {[%clk 0:02:33.7]}
13. c4 {[%clk 0:02:44.3]} 13... bxc4 {[%clk 0:02:31.6]} 14. dxc4 {[%clk
0:02:44.6]} 14... Be6 {[%clk 0:02:27.8]} 15. Bxf6 {[%clk 0:02:28.5]} 15... Bxf6
{[%clk 0:02:25.9]} 16. cxd5 {[%clk 0:02:28.1]} 16... Bxd5 {[%clk 0:02:24.7]} 17.
e4 {[%clk 0:02:28.7]} 17... Bxa1 {[%clk 0:02:16.2]} 18. exd5 {[%clk 0:02:24]}
18... Bd4+ {[%clk 0:02:15.2]} 19. Kh1 {[%clk 0:02:24.2]} 19... Qd7 {[%clk
0:01:51.7]} 20. Nc4 {[%clk 0:02:23.4]} 20... Rad8 {[%clk 0:01:46.1]} 21. Qe2
{[%clk 0:02:21.8]} 21... e6 {[%clk 0:01:44.6]} 22. dxe6 {[%clk 0:02:20.5]} 22...
Qxe6 {[%clk 0:01:44.6]} 23. Qxe6 {[%clk 0:02:19.2]} 23... fxe6 {[%clk
0:01:45.5]} 24. g3 {[%clk 0:02:18.8]} 24... e5 {[%clk 0:01:45]} 25. fxe5 {[%clk
0:02:18]} 25... Kg7 {[%clk 0:01:30]} 26. Kg2 {[%clk 0:02:17.8]} 26... Rf5 {[%clk
0:01:21.1]} 27. Re1 {[%clk 0:02:16.6]} 27... Rdf8 {[%clk 0:01:14]} 28. Bc6
{[%clk 0:02:02.3]} 28... Rf2+ {[%clk 0:01:13.2]} 29. Kh3 {[%clk 0:02:02.8]}
29... Rxa2 {[%clk 0:01:06.4]} 30. e6 {[%clk 0:02:02]} 30... Rff2 {[%clk
0:01:03.1]} 31. e7 {[%clk 0:01:50.4]} 31... h5 {[%clk 0:01:02.1]} 32. Rh1 {[%clk
0:01:45.8]} 32... Rae2 {[%clk 0:00:26.1]} 33. e8=Q {[%clk 0:01:44.8]} 33... Rxe8
{[%clk 0:00:26.3]} 34. Bxe8 {[%clk 0:01:45.7]} 34... Kh6 {[%clk 0:00:26.6]} 35.
Re1 {[%clk 0:01:18.2]} 35... g5 {[%clk 0:00:26.2]} 36. Re6+ {[%clk 0:01:14.6]}
36... Bf6 {[%clk 0:00:26.1]} 37. g4 {[%clk 0:01:15]} 37... Rf3+ {[%clk
0:00:22.6]} 38. Kg2 {[%clk 0:01:15]} 38... hxg4 {[%clk 0:00:22.9]} 39. Ne5
{[%clk 0:01:12.4]} 39... Rf4 {[%clk 0:00:20.3]} 40. Rxf6+ {[%clk 0:01:10]} 40...
Rxf6 {[%clk 0:00:15.7]} 41. Nxg4+ {[%clk 0:01:10.2]} 41... Kg7 {[%clk
0:00:16.1]} 42. Nxf6 {[%clk 0:01:10.9]} 42... Kxf6 {[%clk 0:00:16.7]} 43. Kg3
{[%clk 0:01:11.6]} 43... Ke5 {[%clk 0:00:10.7]} 44. Kg4 {[%clk 0:01:11.8]} 44...
Kd4 {[%clk 0:00:11.1]} 45. Kxg5 {[%clk 0:01:11.9]} 45... c4 {[%clk 0:00:07.1]}
46. bxc4 {[%clk 0:01:12.8]} 46... Kxc4 {[%clk 0:00:07.3]} 47. h4 {[%clk
0:01:13.7]} 47... Kd5 {[%clk 0:00:07.9]} 48. h5 {[%clk 0:01:14.6]} 48... Ke6
{[%clk 0:00:08.5]} 49. Kg6 {[%clk 0:01:15]} 49... Ke7 {[%clk 0:00:09.1]} 50. h6
{[%clk 0:01:15.7]} 50... Kf8 {[%clk 0:00:08]} 51. h7 {[%clk 0:01:16.6]} 1-0

[Event "Late-Titled-Tuesday-Blitz-April-23-2024"]
[Site "Chess.com"]
[Date "2024.04.23"]
[Round "10"]
[White "katharinareinecke"]
[Black "Francisco_Ferrari"]
[Result "0-1"]
[WhiteElo "2054"]
[BlackElo "2198"]
[TimeControl "180+1"]
[EndTime "15:57:18 PDT"]
[Termination "Francisco_Ferrari won by checkmate"]

1. e4 {[%clk 0:03:00.9]} 1... c6 {[%clk 0:02:56.8]} 2. Nf3 {[%clk 0:02:56.4]}
2... d5 {[%clk 0:02:53.9]} 3. d3 {[%clk 0:02:54]} 3... Bg4 {[%clk 0:02:50.4]} 4.
h3 {[%clk 0:02:53.5]} 4... Bxf3 {[%clk 0:02:49.4]} 5. Qxf3 {[%clk 0:02:53]} 5...
e6 {[%clk 0:02:45.8]} 6. g3 {[%clk 0:02:51.4]} 6... Nd7 {[%clk 0:02:45.3]} 7.
Bg2 {[%clk 0:02:51.7]} 7... Ngf6 {[%clk 0:02:44.8]} 8. O-O {[%clk 0:02:50.6]}
8... Be7 {[%clk 0:02:38.7]} 9. exd5 {[%clk 0:02:50.8]} 9... cxd5 {[%clk
0:02:33.1]} 10. b3 {[%clk 0:02:44.9]} 10... O-O {[%clk 0:02:30]} 11. Bb2 {[%clk
0:02:45.1]} 11... Rc8 {[%clk 0:02:29.4]} 12. c4 {[%clk 0:02:44.6]} 12... dxc4
{[%clk 0:02:10.4]} 13. dxc4 {[%clk 0:02:44.4]} 13... Nc5 {[%clk 0:02:04.2]} 14.
Ba3 {[%clk 0:02:37]} 14... Nce4 {[%clk 0:01:57.8]} 15. Bxe7 {[%clk 0:02:33.7]}
15... Qxe7 {[%clk 0:01:57.6]} 16. Qe3 {[%clk 0:02:28]} 16... Nc5 {[%clk
0:01:51.8]} 17. Nc3 {[%clk 0:02:24.3]} 17... Rfd8 {[%clk 0:01:51.2]} 18. Nb5
{[%clk 0:02:21.3]} 18... a6 {[%clk 0:01:40.9]} 19. Nd4 {[%clk 0:02:17.5]} 19...
Qd6 {[%clk 0:01:40.9]} 20. Rad1 {[%clk 0:02:14.6]} 20... e5 {[%clk 0:01:41.2]}
21. Nf5 {[%clk 0:02:07.1]} 21... Qxd1 {[%clk 0:01:41.6]} 22. Rxd1 {[%clk
0:02:00.6]} 22... Rxd1+ {[%clk 0:01:40.6]} 23. Kh2 {[%clk 0:02:00.3]} 23... Kf8
{[%clk 0:01:19.8]} 24. Qxe5 {[%clk 0:01:57]} 24... Ne6 {[%clk 0:01:15.9]} 25.
Bxb7 {[%clk 0:01:47.2]} 25... Rcd8 {[%clk 0:01:04]} 26. Bxa6 {[%clk 0:01:08.8]}
26... R8d2 {[%clk 0:01:02.4]} 27. Qb8+ {[%clk 0:01:08.5]} 27... Rd8 {[%clk
0:00:49.8]} 28. Qb4+ {[%clk 0:01:08]} 28... Kg8 {[%clk 0:00:49.1]} 29. Ne7+
{[%clk 0:01:07.1]} 29... Kh8 {[%clk 0:00:48.9]} 30. c5 {[%clk 0:01:03.1]} 30...
R1d2 {[%clk 0:00:41.6]} 31. Kg1 {[%clk 0:00:49.8]} 31... Nd4 {[%clk 0:00:22.5]}
32. c6 {[%clk 0:00:38.1]} 32... Ne4 {[%clk 0:00:11.9]} 33. c7 {[%clk 0:00:24.5]}
33... Nf3+ {[%clk 0:00:11.2]} 34. Kf1 {[%clk 0:00:20.2]} 34... Rxf2# {[%clk
0:00:10.3]} 0-1

[Event "Late-Titled-Tuesday-Blitz-April-23-2024"]
[Site "Chess.com"]
[Date "2024.04.23"]
[Round "10"]
[White "Skatchkov_V"]
[Black "2Coaches1Profile"]
[Result "0-1"]
[WhiteElo "2661"]
[BlackElo "2568"]
[TimeControl "180+1"]
[EndTime "15:57:28 PDT"]
[Termination "2Coaches1Profile won on time"]

1. d4 {[%clk 0:02:44.2]} 1... Nf6 {[%clk 0:02:59.6]} 2. c4 {[%clk 0:02:43.8]}
2... c5 {[%clk 0:03:00]} 3. d5 {[%clk 0:02:43.7]} 3... e6 {[%clk 0:03:00.7]} 4.
Nc3 {[%clk 0:02:39]} 4... exd5 {[%clk 0:03:01.6]} 5. cxd5 {[%clk 0:02:39.9]}
5... d6 {[%clk 0:03:01.9]} 6. Nf3 {[%clk 0:02:40.5]} 6... g6 {[%clk 0:03:02.3]}
7. Bf4 {[%clk 0:02:41.2]} 7... Bg7 {[%clk 0:03:02.9]} 8. Qa4+ {[%clk 0:02:41.8]}
8... Bd7 {[%clk 0:02:57.7]} 9. Qb3 {[%clk 0:02:42.3]} 9... b5 {[%clk 0:02:57.8]}
10. Bxd6 {[%clk 0:02:42.2]} 10... c4 {[%clk 0:02:56.1]} 11. Qd1 {[%clk
0:02:41.3]} 11... Qb6 {[%clk 0:02:55.6]} 12. Be5 {[%clk 0:02:41]} 12... O-O
{[%clk 0:02:55.1]} 13. e3 {[%clk 0:02:40.4]} 13... Bf5 {[%clk 0:02:54.3]} 14.
Be2 {[%clk 0:02:27]} 14... Nbd7 {[%clk 0:02:40.2]} 15. Bd4 {[%clk 0:02:26]}
15... Qb7 {[%clk 0:02:40.8]} 16. O-O {[%clk 0:02:25.1]} 16... Rac8 {[%clk
0:02:38.9]} 17. a4 {[%clk 0:02:14.5]} 17... b4 {[%clk 0:02:26.2]} 18. Nb5 {[%clk
0:02:13.2]} 18... Qxd5 {[%clk 0:02:23]} 19. Nxa7 {[%clk 0:02:09.9]} 19... Ra8
{[%clk 0:02:19.9]} 20. Nb5 {[%clk 0:02:09.4]} 20... Rfc8 {[%clk 0:02:15.1]} 21.
Qc1 {[%clk 0:01:56.3]} 21... Bd3 {[%clk 0:01:53.8]} 22. Bxd3 {[%clk 0:01:44.8]}
22... cxd3 {[%clk 0:01:54.7]} 23. Qd2 {[%clk 0:01:45.1]} 23... Qb3 {[%clk
0:01:52.1]} 24. Rfd1 {[%clk 0:01:38.9]} 24... Rxa4 {[%clk 0:01:35.8]} 25. Rxa4
{[%clk 0:01:38.1]} 25... Qxa4 {[%clk 0:01:36.7]} 26. Qxd3 {[%clk 0:01:38.8]}
26... Bf8 {[%clk 0:01:20.8]} 27. h4 {[%clk 0:01:18.9]} 27... Nc5 {[%clk
0:01:13]} 28. Qe2 {[%clk 0:01:18.4]} 28... Nce4 {[%clk 0:01:06.3]} 29. Ng5
{[%clk 0:01:08.6]} 29... Rc2 {[%clk 0:00:58]} 30. Qe1 {[%clk 0:00:13.5]} 30...
Qxb5 {[%clk 0:00:49.7]} 31. f3 {[%clk 0:00:08.2]} 31... Nxg5 {[%clk 0:00:43.3]}
32. hxg5 {[%clk 0:00:09.1]} 32... Qxg5 {[%clk 0:00:42.3]} 33. Rd2 {[%clk
0:00:06.4]} 33... Rxd2 {[%clk 0:00:25.5]} 34. Qxd2 {[%clk 0:00:07.3]} 34... Bc5
{[%clk 0:00:25.3]} 35. f4 {[%clk 0:00:01.8]} 35... Qd5 {[%clk 0:00:23.6]} 0-1

[Event "Late-Titled-Tuesday-Blitz-April-23-2024"]
[Site "Chess.com"]
[Date "2024.04.23"]
[Round "10"]
[White "Rytenko_V"]
[Black "egnfanclub"]
[Result "1/2-1/2"]
[WhiteElo "2508"]
[BlackElo "2373"]
[TimeControl "180+1"]
[EndTime "15:57:29 PDT"]
[Termination "Game drawn by agreement"]

1. e4 {[%clk 0:03:00.9]} 1... e5 {[%clk 0:03:00]} 2. Nf3 {[%clk 0:03:00.7]} 2...
Nc6 {[%clk 0:03:00.3]} 3. Bb5 {[%clk 0:03:00.5]} 3... a6 {[%clk 0:03:00.1]} 4.
Bxc6 {[%clk 0:03:00.3]} 4... dxc6 {[%clk 0:03:00.3]} 5. O-O {[%clk 0:03:00.4]}
5... Bg4 {[%clk 0:03:00.3]} 6. h3 {[%clk 0:02:58]} 6... h5 {[%clk 0:03:00.1]} 7.
d3 {[%clk 0:02:56]} 7... Qf6 {[%clk 0:03:00]} 8. Be3 {[%clk 0:02:53.9]} 8...
Bxf3 {[%clk 0:02:59.6]} 9. Qxf3 {[%clk 0:02:53.4]} 9... Qxf3 {[%clk 0:02:59.5]}
10. gxf3 {[%clk 0:02:54.1]} 10... O-O-O {[%clk 0:02:59.7]} 11. f4 {[%clk
0:02:52.6]} 11... Bd6 {[%clk 0:02:55.5]} 12. fxe5 {[%clk 0:02:49.6]} 12... Bxe5
{[%clk 0:02:55.3]} 13. Nc3 {[%clk 0:02:49.6]} 13... f5 {[%clk 0:02:49.3]} 14. f4
{[%clk 0:02:41.2]} 14... Bd4 {[%clk 0:02:47.1]} 15. Rae1 {[%clk 0:02:36.2]}
15... Ne7 {[%clk 0:02:27.8]} 16. Bxd4 {[%clk 0:02:33.4]} 16... Rxd4 {[%clk
0:02:27.1]} 17. Ne2 {[%clk 0:02:34.1]} 17... Rd7 {[%clk 0:02:21.5]} 18. Ng3
{[%clk 0:02:23.2]} 18... g6 {[%clk 0:02:18.6]} 19. h4 {[%clk 0:02:22.9]} 19...
c5 {[%clk 0:02:15.4]} 20. b3 {[%clk 0:02:22.1]} 20... Nc6 {[%clk 0:01:53.3]} 21.
exf5 {[%clk 0:02:09.1]} 21... gxf5 {[%clk 0:01:53.3]} 22. Nxf5 {[%clk
0:02:08.4]} 22... Rf7 {[%clk 0:01:51.6]} 23. Ng3 {[%clk 0:02:04.9]} 23... Nd4
{[%clk 0:01:51.6]} 24. Rf2 {[%clk 0:02:03.6]} 24... Rg8 {[%clk 0:01:47.9]} 25.
Kh2 {[%clk 0:02:03.8]} 25... Rg4 {[%clk 0:01:42.9]} 26. Kh3 {[%clk 0:01:57]}
26... Rfxf4 {[%clk 0:01:35.8]} 27. Rxf4 {[%clk 0:01:54.5]} 27... Rxf4 {[%clk
0:01:36.7]} 28. Nxh5 {[%clk 0:01:53.9]} 28... Rxh4+ {[%clk 0:01:34.7]} 29. Kxh4
{[%clk 0:01:48.4]} 29... Nf3+ {[%clk 0:01:34.6]} 30. Kg3 {[%clk 0:01:46.6]}
30... Nxe1 {[%clk 0:01:35.5]} 31. Kf2 {[%clk 0:00:53.8]} 31... Nxc2 {[%clk
0:01:34.8]} 32. Ke2 {[%clk 0:00:54.3]} 32... Nb4 {[%clk 0:01:31]} 33. a4 {[%clk
0:00:53.3]} 33... Nc2 {[%clk 0:01:28.4]} 34. Kd2 {[%clk 0:00:51.8]} 34... Nd4
{[%clk 0:01:25.3]} 35. Kc3 {[%clk 0:00:48.4]} 35... b5 {[%clk 0:01:23.9]} 36.
axb5 {[%clk 0:00:46.5]} 36... axb5 {[%clk 0:01:24.8]} 37. b4 {[%clk 0:00:45.1]}
37... Ne6 {[%clk 0:01:11.2]} 38. Nf6 {[%clk 0:00:40.2]} 38... Kb7 {[%clk
0:01:02.6]} 39. bxc5 {[%clk 0:00:39.5]} 39... Nxc5 {[%clk 0:01:02.6]} 40. d4
{[%clk 0:00:37.3]} 40... Ne6 {[%clk 0:00:55.2]} 41. Kb4 {[%clk 0:00:28.5]} 41...
Kb6 {[%clk 0:00:46.6]} 42. Nd5+ {[%clk 0:00:27.6]} 42... Kc6 {[%clk 0:00:43.4]}
43. Ne7+ {[%clk 0:00:22]} 43... Kd7 {[%clk 0:00:42.8]} 44. Nf5 {[%clk
0:00:20.5]} 44... c6 {[%clk 0:00:42.3]} 45. d5 {[%clk 0:00:19.2]} 45... cxd5
{[%clk 0:00:38.3]} 46. Kxb5 {[%clk 0:00:18.2]} 1/2-1/2

[Event "Late-Titled-Tuesday-Blitz-April-23-2024"]
[Site "Chess.com"]
[Date "2024.04.23"]
[Round "10"]
[White "Zampronha1971"]
[Black "Denmark2015"]
[Result "0-1"]
[WhiteElo "2465"]
[BlackElo "2619"]
[TimeControl "180+1"]
[EndTime "15:57:30 PDT"]
[Termination "Denmark2015 won by resignation"]

1. e4 {[%clk 0:03:00.9]} 1... e6 {[%clk 0:02:59.7]} 2. d4 {[%clk 0:03:00.5]}
2... d5 {[%clk 0:03:00]} 3. Nc3 {[%clk 0:03:00.9]} 3... Be7 {[%clk 0:02:59.1]}
4. Nf3 {[%clk 0:02:59.8]} 4... Nf6 {[%clk 0:02:58.6]} 5. Bd3 {[%clk 0:02:59.7]}
5... c5 {[%clk 0:02:58.2]} 6. dxc5 {[%clk 0:02:47.3]} 6... dxe4 {[%clk
0:02:57.9]} 7. Nxe4 {[%clk 0:02:47.4]} 7... Nxe4 {[%clk 0:02:57.9]} 8. Bxe4
{[%clk 0:02:48.3]} 8... Qxd1+ {[%clk 0:02:58]} 9. Kxd1 {[%clk 0:02:49.1]} 9...
Bxc5 {[%clk 0:02:58.2]} 10. Ke2 {[%clk 0:02:48.4]} 10... Nd7 {[%clk 0:02:58.5]}
11. Rd1 {[%clk 0:02:40.4]} 11... Nf6 {[%clk 0:02:48.6]} 12. Bd3 {[%clk
0:02:37.5]} 12... b6 {[%clk 0:02:29.8]} 13. Be3 {[%clk 0:02:37.5]} 13... Bxe3
{[%clk 0:02:25.7]} 14. Kxe3 {[%clk 0:02:38.4]} 14... Bb7 {[%clk 0:02:22.9]} 15.
Bb5+ {[%clk 0:02:37.6]} 15... Ke7 {[%clk 0:02:22.3]} 16. Ne5 {[%clk 0:02:34.7]}
16... Rac8 {[%clk 0:02:19.7]} 17. c3 {[%clk 0:02:25.1]} 17... Nd5+ {[%clk
0:02:14.2]} 18. Kd2 {[%clk 0:01:59.5]} 18... Rhd8 {[%clk 0:01:59.8]} 19. Kc2
{[%clk 0:01:58.9]} 19... Rc5 {[%clk 0:01:46.7]} 20. c4 {[%clk 0:01:41.9]} 20...
Nf6 {[%clk 0:00:54.2]} 21. Nd3 {[%clk 0:01:34.1]} 21... Rh5 {[%clk 0:00:39.3]}
22. g3 {[%clk 0:00:56.1]} 22... a6 {[%clk 0:00:38]} 23. Ba4 {[%clk 0:00:54.4]}
23... b5 {[%clk 0:00:37.8]} 24. cxb5 {[%clk 0:00:53.6]} 24... axb5 {[%clk
0:00:38.7]} 25. Bb3 {[%clk 0:00:53.3]} 25... Rxh2 {[%clk 0:00:35.7]} 26. Rd2
{[%clk 0:00:49.5]} 26... Be4 {[%clk 0:00:32.8]} 27. Rad1 {[%clk 0:00:43.6]}
27... Bxd3+ {[%clk 0:00:32.4]} 28. Rxd3 {[%clk 0:00:43.8]} 28... Rxf2+ {[%clk
0:00:32.6]} 29. Kc3 {[%clk 0:00:43.3]} 29... Rxd3+ {[%clk 0:00:25.4]} 30. Rxd3
{[%clk 0:00:44.2]} 30... Rf5 {[%clk 0:00:25.2]} 31. Kb4 {[%clk 0:00:43.3]} 31...
h5 {[%clk 0:00:22.6]} 32. a4 {[%clk 0:00:41.3]} 32... bxa4 {[%clk 0:00:22]} 33.
Bxa4 {[%clk 0:00:41.8]} 33... Nd5+ {[%clk 0:00:21.6]} 34. Ka3 {[%clk 0:00:42]}
34... g5 {[%clk 0:00:20.8]} 35. b4 {[%clk 0:00:42.2]} 35... h4 {[%clk
0:00:20.2]} 36. gxh4 {[%clk 0:00:40.5]} 36... gxh4 {[%clk 0:00:21.1]} 37. Rh3
{[%clk 0:00:40.7]} 37... Rf4 {[%clk 0:00:20.8]} 38. b5 {[%clk 0:00:40.2]} 38...
Nb6 {[%clk 0:00:19.9]} 39. Bc2 {[%clk 0:00:36.3]} 39... e5 {[%clk 0:00:20.3]}
40. Kb3 {[%clk 0:00:34.6]} 40... f5 {[%clk 0:00:20.2]} 41. Kc3 {[%clk
0:00:34.8]} 41... Kf6 {[%clk 0:00:20.6]} 42. Kd3 {[%clk 0:00:35]} 42... Kg5
{[%clk 0:00:20.8]} 43. Ke3 {[%clk 0:00:35.4]} 43... Nd5+ {[%clk 0:00:18.6]} 44.
Ke2 {[%clk 0:00:34.4]} 44... Rb4 {[%clk 0:00:18.7]} 45. Bxf5 {[%clk 0:00:31.8]}
45... Nf4+ {[%clk 0:00:18.5]} 46. Kd2 {[%clk 0:00:30.5]} 46... Nxh3 {[%clk
0:00:18]} 47. Bxh3 {[%clk 0:00:29.7]} 47... Rxb5 {[%clk 0:00:18.4]} 48. Bf1
{[%clk 0:00:29.9]} 48... Rb4 {[%clk 0:00:18.5]} 0-1

[Event "Late-Titled-Tuesday-Blitz-April-23-2024"]
[Site "Chess.com"]
[Date "2024.04.23"]
[Round "10"]
[White "Bugcrusher"]
[Black "Mikhail_Bryakin"]
[Result "1/2-1/2"]
[WhiteElo "2562"]
[BlackElo "2824"]
[TimeControl "180+1"]
[EndTime "15:57:37 PDT"]
[Termination "Game drawn by repetition"]

1. d4 {[%clk 0:02:57.8]} 1... Nf6 {[%clk 0:02:56.3]} 2. c4 {[%clk 0:02:55.6]}
2... g6 {[%clk 0:02:55.3]} 3. Nc3 {[%clk 0:02:52.6]} 3... Bg7 {[%clk 0:02:55.8]}
4. e4 {[%clk 0:02:52.8]} 4... d6 {[%clk 0:02:56]} 5. Nf3 {[%clk 0:02:53.1]} 5...
O-O {[%clk 0:02:55.7]} 6. Be2 {[%clk 0:02:53.3]} 6... e5 {[%clk 0:02:54.3]} 7.
O-O {[%clk 0:02:53.4]} 7... Nc6 {[%clk 0:02:53]} 8. d5 {[%clk 0:02:53.1]} 8...
Ne7 {[%clk 0:02:53.4]} 9. b4 {[%clk 0:02:52.1]} 9... a5 {[%clk 0:02:52.1]} 10.
bxa5 {[%clk 0:02:52.3]} 10... Rxa5 {[%clk 0:02:52.4]} 11. Nd2 {[%clk 0:02:52.9]}
11... Nd7 {[%clk 0:02:47.8]} 12. Nb3 {[%clk 0:02:52.3]} 12... Ra8 {[%clk
0:02:47.1]} 13. Be3 {[%clk 0:02:48.5]} 13... b6 {[%clk 0:02:44.1]} 14. a4 {[%clk
0:02:47.9]} 14... f5 {[%clk 0:02:42.7]} 15. f3 {[%clk 0:02:47.5]} 15... Nc5
{[%clk 0:02:31.5]} 16. a5 {[%clk 0:02:42.9]} 16... Bd7 {[%clk 0:02:31.9]} 17.
axb6 {[%clk 0:02:37.4]} 17... cxb6 {[%clk 0:02:32.8]} 18. Nxc5 {[%clk
0:02:34.1]} 18... bxc5 {[%clk 0:02:31.6]} 19. Rxa8 {[%clk 0:02:28.5]} 19... Qxa8
{[%clk 0:02:31.2]} 20. Qa1 {[%clk 0:02:29.4]} 20... f4 {[%clk 0:02:27.8]} 21.
Bf2 {[%clk 0:02:28.9]} 21... g5 {[%clk 0:02:28.1]} 22. Nb5 {[%clk 0:02:24.6]}
22... Bxb5 {[%clk 0:02:23.9]} 23. cxb5 {[%clk 0:02:24.3]} 23... Rb8 {[%clk
0:02:24.1]} 24. Qa6 {[%clk 0:02:18.4]} 24... Qxa6 {[%clk 0:02:21.5]} 25. bxa6
{[%clk 0:02:18.2]} 25... Nc8 {[%clk 0:02:22.4]} 26. Bd3 {[%clk 0:02:10.2]} 26...
Bf6 {[%clk 0:02:22.7]} 27. Rb1 {[%clk 0:02:10.1]} 27... Rxb1+ {[%clk 0:02:18.6]}
28. Bxb1 {[%clk 0:02:10.3]} 28... Bd8 {[%clk 0:02:18.9]} 29. Be1 {[%clk
0:02:03.6]} 29... Kf7 {[%clk 0:02:18.6]} 30. Bc2 {[%clk 0:02:03.7]} 30... Ke7
{[%clk 0:02:18.7]} 31. Ba4 {[%clk 0:02:03.7]} 31... Bb6 {[%clk 0:02:18.7]} 32.
Kf1 {[%clk 0:01:59.4]} 32... Kd8 {[%clk 0:02:19]} 33. h4 {[%clk 0:01:54.6]}
33... h6 {[%clk 0:02:18.1]} 34. h5 {[%clk 0:01:52.3]} 34... Kc7 {[%clk
0:02:18.2]} 35. Ke2 {[%clk 0:01:50.3]} 35... Ne7 {[%clk 0:02:13.5]} 36. Kd3
{[%clk 0:01:24.6]} 36... Ng8 {[%clk 0:02:13.8]} 37. Be8 {[%clk 0:01:21.6]} 37...
Nf6 {[%clk 0:02:14.4]} 38. Bf7 {[%clk 0:01:21]} 38... Nd7 {[%clk 0:02:02.1]} 39.
Kc4 {[%clk 0:01:19.8]} 39... Nb8 {[%clk 0:02:00]} 40. Kb5 {[%clk 0:01:19.7]}
40... c4 {[%clk 0:02:00]} 41. Bc3 {[%clk 0:00:46.7]} 41... Bc5 {[%clk 0:01:40]}
42. Ba5+ {[%clk 0:00:45.8]} 42... Kd7 {[%clk 0:01:40.5]} 43. Be6+ {[%clk
0:00:44.1]} 43... Ke7 {[%clk 0:01:41]} 44. Kxc4 {[%clk 0:00:33.4]} 44... Nxa6
{[%clk 0:01:41.6]} 45. Kb5 {[%clk 0:00:33.5]} 45... Nb8 {[%clk 0:01:42.3]} 46.
Bc7 {[%clk 0:00:28.6]} 46... Nd7 {[%clk 0:01:42.5]} 47. Bxd7 {[%clk 0:00:28.2]}
47... Kxd7 {[%clk 0:01:43.4]} 48. Bb6 {[%clk 0:00:26.8]} 48... Ba3 {[%clk
0:01:44]} 49. Ba7 {[%clk 0:00:22.4]} 49... Bc1 {[%clk 0:01:44.1]} 50. Ka6 {[%clk
0:00:22.4]} 50... Be3 {[%clk 0:01:39.2]} 51. Bb8 {[%clk 0:00:20.2]} 51... Bc5
{[%clk 0:01:38.2]} 52. Kb7 {[%clk 0:00:20.2]} 52... Bd4 {[%clk 0:01:38.4]} 53.
Bc7 {[%clk 0:00:18.9]} 53... Bc3 {[%clk 0:01:37.9]} 54. Bb6 {[%clk 0:00:19.1]}
54... Bb4 {[%clk 0:01:38.1]} 55. Ba7 {[%clk 0:00:19]} 55... Bc5 {[%clk
0:01:38.7]} 56. Bb6 {[%clk 0:00:17.7]} 56... Be3 {[%clk 0:01:37.9]} 57. Ba7
{[%clk 0:00:17.8]} 57... Bc5 {[%clk 0:01:35.8]} 58. Bb6 {[%clk 0:00:17.6]} 58...
Ba3 {[%clk 0:01:33.1]} 59. Ba7 {[%clk 0:00:17.9]} 59... Bb4 {[%clk 0:01:22]} 60.
Bb6 {[%clk 0:00:18]} 60... Be1 {[%clk 0:01:22.6]} 61. Ba7 {[%clk 0:00:18.3]}
61... Bg3 {[%clk 0:01:22.5]} 62. Bb6 {[%clk 0:00:18.4]} 62... Bh4 {[%clk
0:01:22.9]} 63. Ba7 {[%clk 0:00:18.7]} 63... Be1 {[%clk 0:01:23.6]} 64. Bb6
{[%clk 0:00:19]} 64... Bd2 {[%clk 0:01:24.3]} 65. Ba7 {[%clk 0:00:19.4]} 65...
Bc1 {[%clk 0:01:24.6]} 66. Bb6 {[%clk 0:00:19.8]} 66... Be3 {[%clk 0:01:25.3]}
67. Ba7 {[%clk 0:00:20.2]} 67... Bd4 {[%clk 0:01:23.6]} 68. Bb6 {[%clk
0:00:20.5]} 68... Bb2 {[%clk 0:01:24]} 69. Ba7 {[%clk 0:00:20.4]} 69... Ba3
{[%clk 0:01:24.3]} 70. Bb6 {[%clk 0:00:20.7]} 70... Bb4 {[%clk 0:01:24.8]} 71.
Ba7 {[%clk 0:00:21.1]} 71... Ba3 {[%clk 0:01:16.9]} 72. Bb6 {[%clk 0:00:21.3]}
72... Bb4 {[%clk 0:01:17.6]} 1/2-1/2